Workbook

Sheet Contents
B1: REGULATORY REPORTING STATEMENT
B2: =TradingName -> TasNetworks
B3: =CONCATENATE("Benchmarking RIN response ",CRY) -> Benchmarking RIN response 2013-14
B5: CONTENTS
B12: 3. ECONOMIC BENCHMARKING

Sheet 1.0 Business & other details
B1: REGULATORY REPORTING STATEMENT
B2: =TradingName -> TasNetworks
B3: =CONCATENATE("Benchmarking RIN response ",CRY) -> Benchmarking RIN response 2013-14
B4: 1.0 BUSINESS & OTHER DETAILS
B8: Instructions
B9: Complete the following business details regulatory template before entering data or values in any other regulatory template. This regulatory template is linked to other cells within the spreadsheet and automatically generates column headings.
B11: TABLE 1.2.1 - SUBMISSION PARTICULARS INPUT SHEET
B13: Entity details
B15: Trading name | C15: TasNetworks
B16: ACN / ABN | C16: 24167357299
B19: Business address | C19: Address 1 | E19: 1-7 Maria Street
D20: Address 2
C21: Suburb | E21: Lenah Valley
D22: State | E22: Tas | F22: p/code | G22: 7008
B24: Postal address | C24: Address 1 | E24: PO Box 606
D25: Address 2
C26: Suburb | E26: Moonah
D27: State | E27: Tas | F27: p/code | G27: 7009
B30: Contact name/s | C30: Chantal Hopwood | F30: Michael Sward
B31: Contact phone/s | C31: 400827037 | F31: 362716343
B32: Contact email address/s | C32: chantal.hopwood@tasnetworks.com.au | F32: michael.sward@tasnetworks.com.au
B35: Regulatory year | C35: Financial / Other
C36: 2013-14
B40: Sector | C40: Electricity
B41: Segment | C41: Transmission
B42: Source | C42: Reporting
B43: Regulatory Year | C43: 2014
B44: Reporting Period Type | C44: Financial Year
B45: RIN Type | C45: EB
B46: Security Classification | C46: Public
B47: Estimated or actual | C47: Consolidated Public
B48: RIN response - version no. | C48: 1
B49: RIN response - amendment reason | C49: Amendments to 3.2.3 Provisions: Superannuation, 3.6 Quality of services: System losses, and 3.7 Operating environment: Bushfire risk spans.
B50: RIN template - version no. | C50: 2

Sheet 3.1 Revenue
C1: REGULATORY REPORTING STATEMENT
C2: =TradingName -> TasNetworks
C3: =CONCATENATE("Benchmarking RIN response ",CRY) -> Benchmarking RIN response 2013-14
C4: 3.1 REVENUE
E7: Actual ($000s)
E8: =CRY -> 2013-14
C10: TABLE 3.1.1 REVENUE GROUPING BY CHARGEABLE QUANTITY
A11: ET_REV3110_00001 | B11: TREV0101 | C11: From Fixed Customer (Exit Point) Charges | E11: 34903.292
A12: ET_REV3110_00002 | B12: TREV0102 | C12: From Variable Customer (Exit Point) Charges | E12: 0
A13: ET_REV3110_00003 | B13: TREV0103 | C13: From Fixed Generator (Entry Point) Charges | E13: 16629.802
A14: ET_REV3110_00004 | B14: TREV0104 | C14: From Variable Generator (Entry Point) Charges | E14: 0
A15: ET_REV3110_00005 | B15: TREV0105 | C15: From Fixed Energy Usage Charges (Charge per day basis) | E15: 0
A16: ET_REV3110_00006 | B16: TREV0106 | C16: From Variable Energy Usage charges (Charge per kWh basis) | E16: 16465.255
A17: ET_REV3110_00007 | B17: TREV0107 | C17: From Energy based Common Service and General Charges | E17: 12776.5
A18: ET_REV3110_00008 | B18: TREV0108 | C18: From Fixed Demand based Usage Charges | E18: 129521.232
A19: ET_REV3110_00009 | B19: TREV0109 | C19: From Variable Demand based Usage Charges | E19: 905.853
A20: ET_REV3110_00010 | B20: TREV0110 | C20: Revenue from other Sources | E20: 3532.92662
B21: TREV01 | C21: Total revenue by chargeable quantity | D21: $'000 | E21: =SUM(E11:E20) -> 214734.8606
C24: TABLE 3.1.2 REVENUE GROUPING BY TYPE OF CONNECTED EQUIPMENT
A25: ET_REV3120_00001 | B25: TREV0201 | C25: From Other connected transmission networks | E25: 0
A26: ET_REV3120_00002 | B26: TREV0202 | C26: From Distribution networks | E26: 125026.807
A27: ET_REV3120_00003 | B27: TREV0203 | C27: From Directly connected end–users | E27: 69545.325
A28: ET_REV3120_00004 | B28: TREV0204 | C28: From Generators | E28: 16629.802
A29: ET_REV3120_00005 | B29: TREV0205 | C29: Other revenue | E29: 3532.92662
B30: TREV02 | C30: Total revenue by type of connected equipment | D30: $'000 | E30: =SUM(E25:E29) -> 214734.8606
H32: `
C33: TABLE 3.1.3 REVENUE (penalties) ALLOWED (deducted) THROUGH INCENTIVE SCHEMES
A34: ET_REV3130_00001 | B34: TREV0301 | C34: EBSS | E34: 0
A35: ET_REV3130_00002 | B35: TREV0302 | C35: STPIS | E35: 719.982
A36: ET_REV3130_00003 | B36: TREV0303 | C36: Other | E36: 0
B37: TREV03 | C37: Total revenue of incentive schemes | D37: $'000 | E37: =SUM(E34:E36) -> 719.982

Sheet 3.2 Opex
C1: REGULATORY REPORTING STATEMENT
C2: =TradingName -> TasNetworks
C3: =CONCATENATE("Benchmarking RIN response ",CRY) -> Benchmarking RIN response 2013-14
C4: 3.2 OPERATING EXPENDITURE
C7: Instructions
C8: =CONCATENATE(TradingName, " must fill in opex in table 3.2.1 for opex categories reported in response to its annual reporting RIN.") -> TasNetworks must fill in opex in table 3.2.1 for opex categories reported in response to its annual reporting RIN.
E13: Actual ($000's)
E14: =CRY -> 2013-14
C16: TABLE 3.2.1 - OPEX CATEGORIES
C18: Table 3.2.1.1 Current opex categories and cost allocations
B19: TOPEX0101
B20: TOPEX0102
B21: TOPEX0103
B22: TOPEX0104
B23: TOPEX0105
B24: TOPEX0106
B25: TOPEX0107
B26: TOPEX0108
B27: TOPEX0109
B28: TOPEX0110
B29: TOPEX0111
B30: TOPEX0112
B31: TOPEX0113
B32: TOPEX0114
B33: TOPEX0115
B34: TOPEX0116
B35: TOPEX0117
B36: TOPEX0118
B37: TOPEX0119
B38: TOPEX0120
B39: TOPEX0121
B40: TOPEX0122
B41: TOPEX0123
B42: TOPEX0124
B43: TOPEX0125
B44: TOPEX0126
B45: TOPEX0127
B46: TOPEX0128
B47: TOPEX0129
B48: TOPEX0130
B49: TOPEX0131
B50: TOPEX0132
B51: TOPEX0133
B52: TOPEX0134
B53: TOPEX0135
B54: TOPEX0136
B55: TOPEX0137
B56: TOPEX0138
B57: TOPEX0139
B58: TOPEX0140
B59: TOPEX0141
A60: ET_OPX3211_99999 | B60: TOPEX01 | C60: Total opex | D60: ($000's) | E60: =SUM(E18:E59) -> 0
C62: Table 3.2.1.2A - Historical opex categories and cost allocations | E62: =CRY -> 2013-14
B63: TOPEX0101A | C63: Field Operations and Maintenance | E63: 14640
B64: TOPEX0102A | C64: Transmission Services | E64: 7920
B65: TOPEX0103A | C65: Transmission Operations | E65: 4860
B66: TOPEX0104A | C66: Asset Management | E66: 7850
B67: TOPEX0105A | C67: Corporate | E67: 8400
B68: TOPEX0106A | C68: Network Support | E68: 0
B69: TOPEX0107A | C69: Insurance | E69: 1020
B70: TOPEX0108A | C70: Self-Insurance | E70: 908
B71: TOPEX0109A
B72: TOPEX0110A
B73: TOPEX0111A
B74: TOPEX0112A
B75: TOPEX0113A
B76: TOPEX0114A
B77: TOPEX0115A
B78: TOPEX0116A
B79: TOPEX0117A
B80: TOPEX0118A
B81: TOPEX0119A
B82: TOPEX0120A
B83: TOPEX0121A
B84: TOPEX0122A
B85: TOPEX0123A
B86: TOPEX0124A
B87: TOPEX0125A
B88: TOPEX0126A
B89: TOPEX0127A
B90: TOPEX0128A
B91: TOPEX0129A
B92: TOPEX0130A
B93: TOPEX0131A
B94: TOPEX0132A
B95: TOPEX0133A
B96: TOPEX0134A
B97: TOPEX0135A
B98: TOPEX0136A
B99: TOPEX0137A
B100: TOPEX0138A
B101: TOPEX0139A
B102: TOPEX0140A
B103: TOPEX0141A
B104: TOPEX0142A
A105: ET_OPX3211A_99999 | B105: TOPEX01A | C105: Total opex | D105: ($000's) | E105: =SUM(E63:E104) -> 45598
C107: Table 3.2.1.2B - Historical opex categories and cost allocations | E107: =CRY -> 2013-14
B108: TOPEX0101B
B109: TOPEX0102B
B110: TOPEX0103B
B111: TOPEX0104B
B112: TOPEX0105B
B113: TOPEX0106B
B114: TOPEX0107B
B115: TOPEX0108B
B116: TOPEX0109B
B117: TOPEX0110B
B118: TOPEX0111B
B119: TOPEX0112B
B120: TOPEX0113B
B121: TOPEX0114B
B122: TOPEX0115B
B123: TOPEX0116B
B124: TOPEX0117B
B125: TOPEX0118B
B126: TOPEX0119B
B127: TOPEX0120B
B128: TOPEX0121B
B129: TOPEX0122B
B130: TOPEX0123B
B131: TOPEX0124B
B132: TOPEX0125B
B133: TOPEX0126B
B134: TOPEX0127B
B135: TOPEX0128B
B136: TOPEX0129B
B137: TOPEX0130B
B138: TOPEX0131B
B139: TOPEX0132B
B140: TOPEX0133B
B141: TOPEX0134B
B142: TOPEX0135B
B143: TOPEX0136B
B144: TOPEX0137B
B145: TOPEX0138B
B146: TOPEX0139B
B147: TOPEX0140B
B148: TOPEX0141B
B149: TOPEX0142B
A150: ET_OPX3211B_99999 | B150: TOPEX01B | C150: Total opex | D150: ($000's) | E150: =SUM(E108:E149) -> 0
C152: Table 3.2.1.2C - Historical opex categories and cost allocations | E152: =CRY -> 2013-14
B153: TOPEX0101C
B154: TOPEX0102C
B155: TOPEX0103C
B156: TOPEX0104C
B157: TOPEX0105C
B158: TOPEX0106C
B159: TOPEX0107C
B160: TOPEX0108C
B161: TOPEX0109C
B162: TOPEX0110C
B163: TOPEX0111C
B164: TOPEX0112C
B165: TOPEX0113C
B166: TOPEX0114C
B167: TOPEX0115C
B168: TOPEX0116C
B169: TOPEX0117C
B170: TOPEX0118C
B171: TOPEX0119C
B172: TOPEX0120C
B173: TOPEX0121C
B174: TOPEX0122C
B175: TOPEX0123C
B176: TOPEX0124C
B177: TOPEX0125C
B178: TOPEX0126C
B179: TOPEX0127C
B180: TOPEX0128C
B181: TOPEX0129C
B182: TOPEX0130C
B183: TOPEX0131C
B184: TOPEX0132C
B185: TOPEX0133C
B186: TOPEX0134C
B187: TOPEX0135C
B188: TOPEX0136C
B189: TOPEX0137C
B190: TOPEX0138C
B191: TOPEX0139C
B192: TOPEX0140C
B193: TOPEX0141C
B194: TOPEX0142C
A195: ET_OPX3211C_99999 | B195: TOPEX01C | C195: Total opex | D195: ($000's) | E195: =SUM(E153:E194) -> 0

Sheet 3.2.3 Provisions
C1: REGULATORY REPORTING STATEMENT
C2: =TradingName -> TasNetworks
C3: =CONCATENATE("Benchmarking RIN response ",CRY) -> Benchmarking RIN response 2013-14
C4: 3.2 OPERATING EXPENDITURE
C7: Instructions
C8: =CONCATENATE(TradingName, " must fill in opex in table 3.2.3 for opex categories reported in response to its annual reporting RIN.") -> TasNetworks must fill in opex in table 3.2.3 for opex categories reported in response to its annual reporting RIN.
C10: TABLE 3.2.3 - PROVISIONS
C11: For each provision report:
E12: $000s
E13: =CRY -> 2013-14
B15: TOPEX03A | C15: Annual Leave
C16: Annual Leave
B17: TOPEX0301A | C17: Opening balance (the carrying amount at the beginning of the period) | E17: 3191.7915
C18: Additional provisions made in the period, including increases to existing provisions
B19: TOPEX0302A | C19: Opex component | E19: 1551.265795
B20: TOPEX0303A | C20: Capex component | E20: 250.6904938
B21: TOPEX0304A | C21: Other component
C22: Amounts used (that is, incurred and charged against the provision) during the period
B23: TOPEX0305A | C23: Opex component | E23: -1409.669879
B24: TOPEX0306A | C24: Capex component | E24: -227.8080514
B25: TOPEX0307A | C25: Other component
C26: Unused amounts reversed during the period
B27: TOPEX0308A | C27: Opex component | E27: 0
B28: TOPEX0309A | C28: Capex component | E28: 0
B29: TOPEX0310A | C29: Other component
C30: The increase during the period in the discounted amount arising from the passage of time and the effect of any change in the discount rate
B31: TOPEX0311A | C31: Opex component | E31: 15.08705394
B32: TOPEX0312A | C32: Capex component | E32: 2.4381257
B33: TOPEX0313A | C33: Other component
B34: TOPEX0314A | C34: Closing balance (carrying amount at the end of the period) | E34: 3373.795039
B35: TOPEX03B | C35: Long Service Leave
C36: Long Service Leave
B37: TOPEX0301B | C37: Opening balance (the carrying amount at the beginning of the period) | E37: 4335.268446
C38: Additional provisions made in the period, including increases to existing provisions
B39: TOPEX0302B | C39: Opex component | E39: 977.8868842
B40: TOPEX0303B | C40: Capex component | E40: 158.0302658
B41: TOPEX0304B | C41: Other component
C42: Amounts used (that is, incurred and charged against the provision) during the period
B43: TOPEX0305B | C43: Opex component | E43: -233.4711655
B44: TOPEX0306B | C44: Capex component | E44: -37.72983453
B45: TOPEX0307B | C45: Other component
C46: Unused amounts reversed during the period
B47: TOPEX0308B | C47: Opex component | E47: -167.3255416
B48: TOPEX0309B | C48: Capex component | E48: -27.04044838
B49: TOPEX0310B | C49: Other component
C50: The increase during the period in the discounted amount arising from the passage of time and the effect of any change in the discount rate
B51: TOPEX0311B | C51: Opex component | E51: -408.5041819
B52: TOPEX0312B | C52: Capex component | E52: -66.01584035
B53: TOPEX0313B | C53: Other component
B54: TOPEX0314B | C54: Closing balance (carrying amount at the end of the period) | E54: 4531.098584
B55: TOPEX03C | C55: Superannuation
C56: Superannuation
B57: TOPEX0301C | C57: Opening balance (the carrying amount at the beginning of the period) | E57: 56498.621
C58: Additional provisions made in the period, including increases to existing provisions
B59: TOPEX0302C | C59: Opex component | E59: 384.4551294
B60: TOPEX0303C | C60: Capex component | E60: 62.12942137
B61: TOPEX0304C | C61: Other component | E61: 2262.713
C62: Amounts used (that is, incurred and charged against the provision) during the period
B63: TOPEX0305C | C63: Opex component | E63: -1149.300045
B64: TOPEX0306C | C64: Capex component | E64: -185.731289
B65: TOPEX0307C | C65: Other component
C66: Unused amounts reversed during the period
B67: TOPEX0308C | C67: Opex component | E67: 0
B68: TOPEX0309C | C68: Capex component | E68: 0
B69: TOPEX0310C | C69: Other component
C70: The increase during the period in the discounted amount arising from the passage of time and the effect of any change in the discount rate
B71: TOPEX0311C | C71: Opex component | E71: -351.0610769
B72: TOPEX0312C | C72: Capex component | E72: -56.73281458
B73: TOPEX0313C | C73: Other component | E73: 8166.593
B74: TOPEX0314C | C74: Closing balance (carrying amount at the end of the period) | E74: 65631.686
B75: TOPEX03D | C75: Other
C76: Other
B77: TOPEX0301D | C77: Opening balance (the carrying amount at the beginning of the period) | E77: 764.967
C78: Additional provisions made in the period, including increases to existing provisions
B79: TOPEX0302D | C79: Opex component | E79: 592.6627227
B80: TOPEX0303D | C80: Capex component | E80: 107.0255373
B81: TOPEX0304D | C81: Other component
C82: Amounts used (that is, incurred and charged against the provision) during the period
B83: TOPEX0305D | C83: Opex component | E83: -1238.748998
B84: TOPEX0306D | C84: Capex component | E84: -200.1865824
B85: TOPEX0307D | C85: Other component
C86: Unused amounts reversed during the period
B87: TOPEX0308D | C87: Opex component | E87: -22.14152479
B88: TOPEX0309D | C88: Capex component | E88: -3.578155208
B89: TOPEX0310D | C89: Other component
C90: The increase during the period in the discounted amount arising from the passage of time and the effect of any change in the discount rate
B91: TOPEX0311D | C91: Opex component | E91: 0
B92: TOPEX0312D | C92: Capex component | E92: 0
B93: TOPEX0313D | C93: Other component
B94: TOPEX0314D | C94: Closing balance (carrying amount at the end of the period) | E94: 2.983142622e-13
B95: TOPEX03E | C95: Provision name
C96: Brief description of provision
B97: TOPEX0301E | C97: Opening balance (the carrying amount at the beginning of the period)
C98: Additional provisions made in the period, including increases to existing provisions
B99: TOPEX0302E | C99: Opex component
B100: TOPEX0303E | C100: Capex component
B101: TOPEX0304E | C101: Other component
C102: Amounts used (that is, incurred and charged against the provision) during the period
B103: TOPEX0305E | C103: Opex component
B104: TOPEX0306E | C104: Capex component
B105: TOPEX0307E | C105: Other component
C106: Unused amounts reversed during the period
B107: TOPEX0308E | C107: Opex component
B108: TOPEX0309E | C108: Capex component
B109: TOPEX0310E | C109: Other component
C110: The increase during the period in the discounted amount arising from the passage of time and the effect of any change in the discount rate
B111: TOPEX0311E | C111: Opex component
B112: TOPEX0312E | C112: Capex component
B113: TOPEX0313E | C113: Other component
B114: TOPEX0314E | C114: Closing balance (carrying amount at the end of the period)
B115: TOPEX03F | C115: Provision name
C116: Brief description of provision
B117: TOPEX0301F | C117: Opening balance (the carrying amount at the beginning of the period)
C118: Additional provisions made in the period, including increases to existing provisions
B119: TOPEX0302F | C119: Opex component
B120: TOPEX0303F | C120: Capex component
B121: TOPEX0304F | C121: Other component
C122: Amounts used (that is, incurred and charged against the provision) during the period
B123: TOPEX0305F | C123: Opex component
B124: TOPEX0306F | C124: Capex component
B125: TOPEX0307F | C125: Other component
C126: Unused amounts reversed during the period
B127: TOPEX0308F | C127: Opex component
B128: TOPEX0309F | C128: Capex component
B129: TOPEX0310F | C129: Other component
C130: The increase during the period in the discounted amount arising from the passage of time and the effect of any change in the discount rate
B131: TOPEX0311F | C131: Opex component
B132: TOPEX0312F | C132: Capex component
B133: TOPEX0313F | C133: Other component
B134: TOPEX0314F | C134: Closing balance (carrying amount at the end of the period)
B135: TOPEX03G | C135: Provision name
C136: Brief description of provision
B137: TOPEX0301G | C137: Opening balance (the carrying amount at the beginning of the period)
C138: Additional provisions made in the period, including increases to existing provisions
B139: TOPEX0302G | C139: Opex component
B140: TOPEX0303G | C140: Capex component
B141: TOPEX0304G | C141: Other component
C142: Amounts used (that is, incurred and charged against the provision) during the period
B143: TOPEX0305G | C143: Opex component
B144: TOPEX0306G | C144: Capex component
B145: TOPEX0307G | C145: Other component
C146: Unused amounts reversed during the period
B147: TOPEX0308G | C147: Opex component
B148: TOPEX0309G | C148: Capex component
B149: TOPEX0310G | C149: Other component
C150: The increase during the period in the discounted amount arising from the passage of time and the effect of any change in the discount rate
B151: TOPEX0311G | C151: Opex component
B152: TOPEX0312G | C152: Capex component
B153: TOPEX0313G | C153: Other component
B154: TOPEX0314G | C154: Closing balance (carrying amount at the end of the period)
B155: TOPEX03H | C155: Provision name
C156: Brief description of provision
B157: TOPEX0301H | C157: Opening balance (the carrying amount at the beginning of the period)
C158: Additional provisions made in the period, including increases to existing provisions
B159: TOPEX0302H | C159: Opex component
B160: TOPEX0303H | C160: Capex component
B161: TOPEX0304H | C161: Other component
C162: Amounts used (that is, incurred and charged against the provision) during the period
B163: TOPEX0305H | C163: Opex component
B164: TOPEX0306H | C164: Capex component
B165: TOPEX0307H | C165: Other component
C166: Unused amounts reversed during the period
B167: TOPEX0308H | C167: Opex component
B168: TOPEX0309H | C168: Capex component
B169: TOPEX0310H | C169: Other component
C170: The increase during the period in the discounted amount arising from the passage of time and the effect of any change in the discount rate
B171: TOPEX0311H | C171: Opex component
B172: TOPEX0312H | C172: Capex component
B173: TOPEX0313H | C173: Other component
B174: TOPEX0314H | C174: Closing balance (carrying amount at the end of the period)
B175: TOPEX03I | C175: Provision name
C176: Brief description of provision
B177: TOPEX0301I | C177: Opening balance (the carrying amount at the beginning of the period)
C178: Additional provisions made in the period, including increases to existing provisions
B179: TOPEX0302I | C179: Opex component
B180: TOPEX0303I | C180: Capex component
B181: TOPEX0304I | C181: Other component
C182: Amounts used (that is, incurred and charged against the provision) during the period
B183: TOPEX0305I | C183: Opex component
B184: TOPEX0306I | C184: Capex component
B185: TOPEX0307I | C185: Other component
C186: Unused amounts reversed during the period
B187: TOPEX0308I | C187: Opex component
B188: TOPEX0309I | C188: Capex component
B189: TOPEX0310I | C189: Other component
C190: The increase during the period in the discounted amount arising from the passage of time and the effect of any change in the discount rate
B191: TOPEX0311I | C191: Opex component
B192: TOPEX0312I | C192: Capex component
B193: TOPEX0313I | C193: Other component
B194: TOPEX0314I | C194: Closing balance (carrying amount at the end of the period)
B195: TOPEX03J | C195: Provision name
C196: Brief description of provision
B197: TOPEX0301J | C197: Opening balance (the carrying amount at the beginning of the period)
C198: Additional provisions made in the period, including increases to existing provisions
B199: TOPEX0302J | C199: Opex component
B200: TOPEX0303J | C200: Capex component
B201: TOPEX0304J | C201: Other component
C202: Amounts used (that is, incurred and charged against the provision) during the period
B203: TOPEX0305J | C203: Opex component
B204: TOPEX0306J | C204: Capex component
... 170 more rows

Sheet 3.3 Assets (RAB)
C1: REGULATORY REPORTING STATEMENT
C2: =TradingName -> TasNetworks
C3: =CONCATENATE("Benchmarking RIN response ",CRY) -> Benchmarking RIN response 2013-14
C4: 3.3 ASSETS
E7: Actual ($ 000s)
E8: =CRY -> 2013-14
C10: TABLE 3.3.1 - REGULATORY ASSET BASE VALUES
C11: For total asset base:
A12: ET_RAB3310_00001 | B12: TRAB0101 | C12: Opening value | E12: 1235836
A13: ET_RAB3310_00002 | B13: TRAB0102 | C13: Inflation addition | E13: 36478.55646
A14: ET_RAB3310_00003 | B14: TRAB0103 | C14: Straight line depreciation | E14: -61434.60659
A15: ET_RAB3310_00004 | B15: TRAB0104 | C15: Regulatory depreciation | E15: =SUM(E14+E13) -> -24956.05013
A16: ET_RAB3310_00005 | B16: TRAB0105 | C16: Actual additions (recognised in RAB) | E16: 174694.628
A17: ET_RAB3310_00006 | B17: TRAB0106 | C17: Disposals | E17: -244.25943
A18: ET_RAB3310_00007 | B18: TRAB0107 | C18: Closing value for overhead distribution asset value | D18: $'000 | E18: =SUM(E12+E13+E14+E16+E17) -> 1385330.318
C21: TABLE 3.3.2 - ASSET VALUE ROLL FORWARD
C22: For overhead transmission assets:
A23: ET_RAB3321_00001 | B23: TRAB0201 | C23: Opening value | E23: 400240.5579
A24: ET_RAB3321_00002 | B24: TRAB0202 | C24: Inflation addition | E24: 11651.76638
A25: ET_RAB3321_00003 | B25: TRAB0203 | C25: Straight line depreciation | E25: -18359.28821
A26: ET_RAB3321_00004 | B26: TRAB0204 | C26: Regulatory depreciation | E26: =SUM(E25+E24) -> -6707.521836
A27: ET_RAB3321_00005 | B27: TRAB0205 | C27: Actual additions (recognised in RAB) | E27: 95646.14046
A28: ET_RAB3321_00006 | B28: TRAB0206 | C28: Disposals | E28: 0
A29: ET_RAB3321_00007 | B29: TRAB0207 | C29: Closing value for overhead distribution asset value | D29: $'000 | E29: =SUM(E23+E24+E25+E27+E28) -> 489179.1765
C30: For underground transmission assets:
A31: ET_RAB3322_00001 | B31: TRAB0301 | C31: Opening value | E31: 32695.72354
A32: ET_RAB3322_00002 | B32: TRAB0302 | C32: Inflation addition | E32: 929.73137
A33: ET_RAB3322_00003 | B33: TRAB0303 | C33: Straight line depreciation | E33: -1373.76766
A34: ET_RAB3322_00004 | B34: TRAB0304 | C34: Regulatory depreciation | E34: =SUM(E33+E32) -> -444.03629
A35: ET_RAB3322_00005 | B35: TRAB0305 | C35: Actual additions (recognised in RAB) | E35: -951.94082
A36: ET_RAB3322_00006 | B36: TRAB0306 | C36: Disposals | E36: 0
A37: ET_RAB3322_00007 | B37: TRAB0307 | C37: Closing value for overhead distribution asset value | D37: $'000 | E37: =SUM(E31+E32+E33+E35+E36) -> 31299.74643
C38: For transmission switchyards, substations
A39: ET_RAB3323_00001 | B39: TRAB0401 | C39: Opening value | E39: 636316.8048
A40: ET_RAB3323_00002 | B40: TRAB0402 | C40: Inflation addition | E40: 18744.14519
A41: ET_RAB3323_00003 | B41: TRAB0403 | C41: Straight line depreciation | E41: -35673.15149
A42: ET_RAB3323_00004 | B42: TRAB0404 | C42: Regulatory depreciation | E42: =SUM(E41+E40) -> -16929.00629
A43: ET_RAB3323_00005 | B43: TRAB0405 | C43: Actual additions (recognised in RAB) | E43: 50362.26049
A44: ET_RAB3323_00006 | B44: TRAB0406 | C44: Disposals | E44: 0
A45: ET_RAB3323_00007 | B45: TRAB0407 | C45: Closing value for overhead distribution asset value | D45: $'000 | E45: =SUM(E39+E40+E41+E43+E44) -> 669750.059
C46: For easements:
A47: ET_RAB3324_00001 | B47: TRAB0501 | C47: Opening value | E47: 98030
A48: ET_RAB3324_00002 | B48: TRAB0502 | C48: Inflation addition | E48: 3144.511932
A49: ET_RAB3324_00003 | B49: TRAB0503 | C49: Straight line depreciation | E49: 0
A50: ET_RAB3324_00004 | B50: TRAB0504 | C50: Regulatory depreciation | E50: =SUM(E49+E48) -> 3144.511932
A51: ET_RAB3324_00005 | B51: TRAB0505 | C51: Actual additions (recognised in RAB) | E51: 0
A52: ET_RAB3324_00006 | B52: TRAB0506 | C52: Disposals | E52: 0
A53: ET_RAB3324_00007 | B53: TRAB0507 | C53: Closing value for overhead distribution asset value | D53: $'000 | E53: =SUM(E47+E48+E49+E51+E52) -> 101174.5119
C54: For “other” assets with long lives:
A55: ET_RAB3325_00001 | B55: TRAB0601 | C55: Opening value | E55: 57573
A56: ET_RAB3325_00002 | B56: TRAB0602 | C56: Inflation addition | E56: 1686.726401
A57: ET_RAB3325_00003 | B57: TRAB0603 | C57: Straight line depreciation | E57: -2182.72713
A58: ET_RAB3325_00004 | B58: TRAB0604 | C58: Regulatory depreciation | E58: =SUM(E57+E56) -> -496.0007285
A59: ET_RAB3325_00005 | B59: TRAB0605 | C59: Actual additions (recognised in RAB) | E59: 13348.85991
A60: ET_RAB3325_00006 | B60: TRAB0606 | C60: Disposals | E60: -230
A61: ET_RAB3325_00007 | B61: TRAB0607 | C61: Closing value for overhead distribution asset value | D61: $'000 | E61: =SUM(E55+E56+E57+E59+E60) -> 70195.85918
C62: For “other” assets with short lives:
A63: ET_RAB3326_00001 | B63: TRAB0701 | C63: Opening value | E63: 10980
A64: ET_RAB3326_00002 | B64: TRAB0702 | C64: Inflation addition | E64: 321.6751899
A65: ET_RAB3326_00003 | B65: TRAB0703 | C65: Straight line depreciation | E65: -3845.6721
A66: ET_RAB3326_00004 | B66: TRAB0704 | C66: Regulatory depreciation | E66: =SUM(E65+E64) -> -3523.99691
A67: ET_RAB3326_00005 | B67: TRAB0705 | C67: Actual additions (recognised in RAB) | E67: 16289.308
A68: ET_RAB3326_00006 | B68: TRAB0706 | C68: Disposals | E68: -14.25943
A69: ET_RAB3326_00007 | B69: TRAB0707 | C69: Closing value for overhead distribution asset value | D69: $'000 | E69: =SUM(E63+E64+E65+E67+E68) -> 23731.05166
C72: TABLE 3.3.3 - TOTAL DISAGGREGATED RAB ASSET VALUES
A73: ET_RAB3330_00001 | B73: TRAB0801 | C73: Overhead transmission assets (wires and towers/poles etc) | E73: 444709.8672
A74: ET_RAB3330_00002 | B74: TRAB0802 | C74: Underground transmission assets (cables, ducts etc) | E74: 31997.73499
A75: ET_RAB3330_00003 | B75: TRAB0803 | C75: Substations, switchyards, Transformers etc with transmission function | E75: 653033.4319
A76: ET_RAB3330_00004 | B76: TRAB0804 | C76: Easements | E76: 99602.25597
A77: ET_RAB3330_00005 | B77: TRAB0805 | C77: Other assets with long lives (please specify) | E77: 63884.42959
A78: ET_RAB3330_00006 | B78: TRAB0806 | C78: Other assets with short lives (please specify) | D78: $'000 | E78: 17355.52583
C81: TABLE 3.3.4 - ASSET LIVES | E81: Service Life (Years)
C82: 3.3.4.1 Asset Lives – estimated service life of new assets | E82: =CRY -> 2013-14
A83: ET_RAB3341_00001 | B83: TRAB0901 | C83: Overhead transmission assets | E83: 56.90118943
A84: ET_RAB3341_00002 | B84: TRAB0902 | C84: Underground transmission assets | E84: 46.51897973
A85: ET_RAB3341_00003 | B85: TRAB0903 | C85: Switchyard, substation and transformer assets | E85: 40.83857298
A86: ET_RAB3341_00004 | B86: TRAB0904 | C86: “Other” assets with long lives | E86: 32.64917346
A87: ET_RAB3341_00005 | B87: TRAB0905 | C87: “Other assets with short lives | E87: 4.737842707
C89: 3.3.4.2 Asset Lives – estimated residual service life
A90: ET_RAB3342_00001 | B90: TRAB1001 | C90: Overhead transmission assets | E90: 43.74847281
A91: ET_RAB3342_00002 | B91: TRAB1002 | C91: Underground transmission assets | E91: 38.04466785
A92: ET_RAB3342_00003 | B92: TRAB1003 | C92: Switchyard, substation and transformer assets | E92: 32.74338784
A93: ET_RAB3342_00004 | B93: TRAB1004 | C93: Other assets with long lives | E93: 26.89766259
A94: ET_RAB3342_00005 | B94: TRAB1005 | C94: Other assets with short lives | E94: 4.039386058

Sheet 3.4 Operational data
C1: REGULATORY REPORTING STATEMENT
C2: =TradingName -> TasNetworks
C3: =CONCATENATE("Benchmarking RIN response ",CRY) -> Benchmarking RIN response 2013-14
C4: 3.4 OPERATIONAL DATA
E8: Actual
E9: =CRY -> 2013-14
D10: Units
C11: TABLE 3.4.1 - ENERGY DELIVERY
C12: Energy Grouping by Downstream Connection type
A13: ET_OPD3410_00001 | B13: TOPED0101 | C13: To Other connected transmission networks | D13: GWh | E13: 3315.788474
A14: ET_OPD3410_00002 | B14: TOPED0102 | C14: To Distribution networks | D14: GWh | E14: 4193.71773
A15: ET_OPD3410_00004 | B15: TOPED0103 | C15: To Directly connected end–users (330 kV) | D15: GWh | E15: 0
A16: ET_OPD3410_00005 | B16: TOPED0104 | C16: To Directly connected end–users (275 kV) | D16: GWh | E16: 0
A17: ET_OPD3410_00006 | B17: TOPED0105 | C17: To Directly connected end–users (220 kV) | D17: GWh | E17: 2819.841
A18: ET_OPD3410_00007 | B18: TOPED0106 | C18: To Directly connected end–users (132 kV) | D18: GWh | E18: 0
A19: ET_OPD3410_00008 | B19: TOPED0107 | C19: To Directly connected end–users (110 kV) | D19: GWh | E19: 886.5117
A20: ET_OPD3410_00009 | B20: TOPED0108 | C20: To Directly connected end–users (44 kV) | D20: GWh | E20: 102.3805
A21: ET_OPD3410_00010 | B21: TOPED0109 | C21: To Directly connected end–users (33 kV) | D21: GWh | E21: 0
A22: ET_OPD3410_00011 | B22: TOPED0110 | C22: To Directly connected end–users (22 kV) | D22: GWh | E22: 242.4728
A23: ET_OPD3410_00012 | B23: TOPED0111 | C23: To Directly connected end–users (11 kV) | D23: GWh | E23: 1111.917
A24: ET_OPD3410_00013 | B24: TOPED0112 | C24: To Directly connected end–users (6.6 kV) | D24: GWh | E24: 627.4816
A25: ET_OPD3410_00014 | B25: TOPED0113 | C25: Pumping and Power Station Auxillaries | D25: GWh | E25: 59.853
B26: TOPED01 | C26: Total energy transported | D26: GWh | E26: =SUM(E13:E25) -> 13359.9638
C29: TABLE 3.4.2 - CONNECTION POINTS
C30: Number of entry points at each transmission voltage level
A31: ET_OPD3421_00001 | B31: TOPCP0101 | C31: 500kV | D31: number | E31: 0
A32: ET_OPD3421_00002 | B32: TOPCP0102 | C32: 330kV | D32: number | E32: 0
A33: ET_OPD3421_00003 | B33: TOPCP0103 | C33: 275kV | D33: number | E33: 0
A34: ET_OPD3421_00004 | B34: TOPCP0104 | C34: 220kV | D34: number | E34: 13
A35: ET_OPD3421_00005 | B35: TOPCP0105 | C35: 132 kV | D35: number | E35: 0
A36: ET_OPD3421_00006 | B36: TOPCP0106 | C36: 110kV | D36: number | E36: 13
A37: ET_OPD3421_00007 | B37: TOPCP0107 | C37: 66 kV | D37: number | E37: 0
A38: ET_OPD3421_00008 | B38: TOPCP0108 | C38: 33 kV | D38: number | E38: 0
A39: ET_OPD3421_00009 | B39: TOPCP0109 | C39: 22 kV | D39: number | E39: 0
A40: ET_OPD3421_00010 | B40: TOPCP0110 | C40: 11 kV | D40: number | E40: 0
A41: ET_OPD3421_00010 | B41: TOPCP0111 | C41: 6.6 kV | D41: number | E41: 0
C43: Number of exit points at each transmission voltage level
A44: ET_OPD3422_00001 | B44: TOPCP0201 | C44: 500kV | D44: number | E44: 0
A45: ET_OPD3422_00002 | B45: TOPCP0202 | C45: 330kV | D45: number | E45: 0
A46: ET_OPD3422_00003 | B46: TOPCP0203 | C46: 275kV | D46: number | E46: 0
A47: ET_OPD3422_00004 | B47: TOPCP0204 | C47: 220kV | D47: number | E47: 2
A48: ET_OPD3422_00005 | B48: TOPCP0205 | C48: 132 kV | D48: number | E48: 0
A49: ET_OPD3422_00006 | B49: TOPCP0206 | C49: 110kV | D49: number | E49: 3
A50: ET_OPD3422_00007 | B50: TOPCP0207 | C50: 66 kV | D50: number | E50: 0
A51: ET_OPD3422_00008 | B51: TOPCP0208 | C51: 44 kV | D51: number | E51: 1
A52: ET_OPD3422_00009 | B52: TOPCP0209 | C52: 33kV | D52: number | E52: 5
A53: ET_OPD3422_00010 | B53: TOPCP0210 | C53: 22kV | D53: number | E53: 28
A54: ET_OPD3422_00011 | B54: TOPCP0211 | C54: 11kV | D54: number | E54: 14
A55: ET_OPD3422_00012 | B55: TOPCP0212 | C55: 6.6kV | D55: number | E55: 3
C58: TABLE 3.4.3 - SYSTEM DEMAND
C59: Table 3.4.3.1 Annual system maximum demand characteristics – MW measure
A60: ET_OPD3431_00001 | B60: TOPSD0101 | C60: Transmission System coincident maximum demand | D60: MW | E60: 2132
A61: ET_OPD3431_00002 | B61: TOPSD0102 | C61: Transmission System coincident weather adjusted maximum demand 10% POE | D61: MW | E61: 2149.522
A62: ET_OPD3431_00003 | B62: TOPSD0103 | C62: Transmission System coincident weather adjusted maximum demand 50% POE | D62: MW | E62: 2141.864
A63: ET_OPD3431_00004 | B63: TOPSD0104 | C63: Transmission System non-coincident summated maximum demand | D63: MW | E63: 2449
A64: ET_OPD3431_00005 | B64: TOPSD0105 | C64: Transmission System non-coincident weather adjusted summated maximum demand 10% POE | D64: MW | E64: 2519.952
A65: ET_OPD3431_00006 | B65: TOPSD0106 | C65: Transmission System non-coincident weather adjusted summated maximum demand 50% POE | D65: MW | E65: 2484.98
C67: Table 3.4.3.2 Annual system maximum demand characteristics – MVA measure
A68: ET_OPD3432_00001 | B68: TOPSD0201 | C68: Transmission System coincident maximum demand | D68: MVA | E68: 2146
A69: ET_OPD3432_00002 | B69: TOPSD0202 | C69: Transmission System coincident weather adjusted maximum demand 10% POE | D69: MVA | E69: 2271.553
A70: ET_OPD3432_00003 | B70: TOPSD0203 | C70: Transmission System coincident weather adjusted maximum demand 50% POE | D70: MVA | E70: 2233.28
A71: ET_OPD3432_00004 | B71: TOPSD0204 | C71: Transmission System non-coincident summated maximum demand | D71: MVA | E71: 2509
A72: ET_OPD3432_00005 | B72: TOPSD0205 | C72: Transmission System non-coincident weather adjusted summated maximum demand 10% POE | D72: MVA | E72: 2581.188
A73: ET_OPD3432_00006 | B73: TOPSD0206 | C73: Transmission System non-coincident weather adjusted summated maximum demand 50% POE | D73: MVA | E73: 2545.647
C75: Table 3.4.3.3 Power factor
C76: Power factor conversion between MVA and MW
A77: ET_OPD3433_00001 | B77: TOPSD0301 | C77: Average overall network power factor conversion between MVA and MW | D77: Factor | E77: 0.986
A78: ET_OPD3433_00002 | B78: TOPSD0302 | C78: Average power factor conversion for 500 kV lines | D78: Factor
A79: ET_OPD3433_00003 | B79: TOPSD0303 | C79: Average power factor conversion for 330 kV lines | D79: Factor
A80: ET_OPD3433_00004 | B80: TOPSD0304 | C80: Average power factor conversion for 275 kV lines | D80: Factor
A81: ET_OPD3433_00005 | B81: TOPSD0305 | C81: Average power factor conversion for 220 kV lines | D81: Factor | E81: 0.989
A82: ET_OPD3433_00006 | B82: TOPSD0306 | C82: Average power factor conversion for 132 kV lines | D82: Factor
A83: ET_OPD3433_00007 | B83: TOPSD0307 | C83: Average power factor conversion for 110 kV lines | D83: Factor | E83: 0.989
A84: ET_OPD3433_00008 | B84: TOPSD0308 | C84: Average power factor conversion for 88 kV lines | D84: Factor
A85: ET_OPD3433_00009 | B85: TOPSD0309 | C85: Average power factor conversion for 66 kV lines | D85: Factor
A86: ET_OPD3433_00010 | B86: TOPSD0310 | C86: Average power factor conversion for 33 kV lines | D86: Factor
A87: ET_OPD3433_00011 | B87: TOPSD0311 | C87: Average power factor conversion for 22 kV lines | D87: Factor
A88: ET_OPD3433_00011 | B88: TOPSD0311 | C88: Average power factor conversion for 11 kV lines | D88: Factor
B89: TOPSD0312 | C89: Average power factor conversion for 6.6 kV lines | D89: Factor

Sheet 3.5 Physical assets
C1: REGULATORY REPORTING STATEMENT
C2: =TradingName -> TasNetworks
C3: =CONCATENATE("Benchmarking RIN response ",CRY) -> Benchmarking RIN response 2013-14
C4: 3.5 PHYSICAL ASSETS
E7: Actual
E8: =CRY -> 2013-14
D9: Unit
C10: TABLE 3.5.1 - TRANSMISSION SYSTEM CAPACITIES
C11: Table 3.5.1.1 Overhead network length of circuit at each voltage
A12: ET_PHA3511_00001 | B12: TPA0101 | C12: 500 kV | D12: km | E12: 0
A13: ET_PHA3511_00002 | B13: TPA0102 | C13: 330 kV | D13: km | E13: 0
A14: ET_PHA3511_00003 | B14: TPA0103 | C14: 275 kV | D14: km | E14: 0
A15: ET_PHA3511_00004 | B15: TPA0104 | C15: 220 kV | D15: km | E15: 1670
A16: ET_PHA3511_00005 | B16: TPA0105 | C16: 132 kV | D16: km | E16: 0
A17: ET_PHA3511_00006 | B17: TPA0106 | C17: 110 kV | D17: km | E17: 1810
A18: ET_PHA3511_00007 | B18: TPA0107 | C18: 88 kV | D18: km | E18: 0
A19: ET_PHA3511_00008 | B19: TPA0108 | C19: 66 kV | D19: km | E19: 0
A20: ET_PHA3511_00009 | B20: TPA0109 | C20: 33 kV | D20: km | E20: 0
A21: ET_PHA3511_00009 | B21: TPA0109 | C21: 22 kV | D21: km | E21: 0
A22: ET_PHA3511_00009 | B22: TPA0109 | C22: 11 kV | D22: km | E22: 0
B23: TPA01 | C23: Total overhead circuit kilometres | D23: km | E23: =SUM(E12:E22) -> 3480
C25: Table 3.5.1.2 Underground cable circuit length at each voltage
A26: ET_PHA3512_00001 | B26: TPA0201 | C26: 500 kV | D26: km | E26: 0
A27: ET_PHA3512_00002 | B27: TPA0202 | C27: 330 kV | D27: km | E27: 0
A28: ET_PHA3512_00003 | B28: TPA0203 | C28: 275 kV | D28: km | E28: 0
A29: ET_PHA3512_00004 | B29: TPA0204 | C29: 220 kV | D29: km | E29: 0
A30: ET_PHA3512_00005 | B30: TPA0205 | C30: 132 kV | D30: km | E30: 0
A31: ET_PHA3512_00006 | B31: TPA0206 | C31: 110 kV | D31: km | E31: 23.8
A32: ET_PHA3511_00007 | B32: TPA0207 | C32: 88 kV | D32: km | E32: 0
A33: ET_PHA3512_00007 | B33: TPA0208 | C33: 66 kV | D33: km | E33: 0
A34: ET_PHA3512_00008 | B34: TPA0209 | C34: 33 kV | D34: km | E34: 0
A35: ET_PHA3512_00007 | B35: TPA0210 | C35: 22 kV | D35: km | E35: 0
A36: ET_PHA3512_00008 | B36: TPA0211 | C36: 11 kV | D36: km | E36: 0
B37: TPA02 | C37: Total underground circuit kilometres | D37: km | E37: =SUM(E26:E34) -> 23.8
B39: TPA0301 | C39: Table 3.5.1.3 Estimated overhead network weighted average MVA capacity by voltage class
A40: ET_PHA3513_00001 | B40: TPA0302 | C40: 500 kV | D40: MVA | E40: 0
A41: ET_PHA3513_00002 | B41: TPA0303 | C41: 330 kV | D41: MVA | E41: 0
A42: ET_PHA3513_00003 | B42: TPA0304 | C42: 275 kV | D42: MVA | E42: 0
A43: ET_PHA3513_00004 | B43: TPA0305 | C43: 220 kV | D43: MVA | E43: 397.6
A44: ET_PHA3513_00005 | B44: TPA0306 | C44: 132 kV | D44: MVA | E44: 0
A45: ET_PHA3513_00006 | B45: TPA0307 | C45: 110 kV | D45: MVA | E45: 105.8
A46: ET_PHA3513_00007 | B46: TPA0308 | C46: 88 kV | D46: MVA | E46: 0
A47: ET_PHA3513_00008 | B47: TPA0309 | C47: 66 kV | D47: MVA | E47: 0
A48: ET_PHA3513_00009 | B48: TPA0310 | C48: 33 kV | D48: MVA | E48: 0
A49: ET_PHA3513_00008 | B49: TPA0311 | C49: 22 kV | D49: MVA | E49: 0
A50: ET_PHA3513_00009 | B50: TPA0312 | C50: 11 kV | D50: MVA | E50: 0
C52: Table 3.5.1.4 Estimated underground network weighted average MVA capacity by voltage class
A53: ET_PHA3514_00001 | B53: TPA0401 | C53: 500 kV | D53: MVA | E53: 0
A54: ET_PHA3514_00002 | B54: TPA0402 | C54: 330 kV | D54: MVA | E54: 0
A55: ET_PHA3514_00003 | B55: TPA0403 | C55: 275 kV | D55: MVA | E55: 0
A56: ET_PHA3514_00004 | B56: TPA0404 | C56: 220 kV | D56: MVA | E56: 0
A57: ET_PHA3514_00005 | B57: TPA0405 | C57: 132 kV | D57: MVA | E57: 0
A58: ET_PHA3514_00006 | B58: TPA0406 | C58: 110 kV | D58: MVA | E58: 141.9
A59: ET_PHA3514_00007 | B59: TPA0407 | C59: 88 kV | D59: MVA | E59: 0
A60: ET_PHA3514_00006 | B60: TPA0408 | C60: 66 kV | D60: MVA | E60: 0
A61: ET_PHA3514_00007 | B61: TPA0409 | C61: 33 kV | D61: MVA | E61: 0
A62: ET_PHA3514_00008 | B62: TPA0410 | C62: 22 kV | D62: MVA | E62: 0
B63: TPA0411 | C63: 11 kV | E63: 0
C65: Table 3.5.1.5 Installed transmission system transformer capacity
A66: ET_PHA3515_00001 | B66: TPA0501 | C66: Transmission substations (eg 500 kV to 330 kV) | D66: MVA | E66: 3640
A67: ET_PHA3515_00002 | B67: TPA0502 | C67: Terminal points to DNSP systems | D67: MVA | E67: 3339
A68: ET_PHA3515_00003 | B68: TPA0503 | C68: Transformer capacity for directly connected end–users owned by the TNSP | D68: MVA | E68: 605
A69: ET_PHA3515_00004 | B69: TPA0504 | C69: Transformer capacity for directly connected end–users owned by the end–user | D69: MVA | E69: 467
A70: ET_PHA3515_00005 | B70: TPA0505 | C70: Interconnector capacity | D70: MVA | E70: 555
A71: ET_PHA3515_00010 | B71: TPA0506 | C71: Other | D71: MVA | E71: 0
C73: Table 3.5.1.6 Cold spare capacity
A74: ET_PHA3516_00001 | B74: TPA06 | C74: Cold spare capacity included in Table 3.5.1.5 | D74: MVA | E74: 370

Sheet 3.6 Quality of services
C1: REGULATORY REPORTING STATEMENT
C2: =TradingName -> TasNetworks
C3: =CONCATENATE("Benchmarking RIN response ",CRY) -> Benchmarking RIN response 2013-14
C4: 3.6 QUALITY OF SERVICE DATA
E7: Actual
E8: =CONCATENATE("Calendar Year ", RegYearCalendar) -> Calendar Year 2014
D9: Unit
C10: TABLE 3.6.1 - SERVICE COMPONENT
C11: Table 3.6.1.1 Service Parameter 1 – Average Circuit outage rate
A12: ET_QOS3611_00001 | B12: TQS0101 | C12: Lines outage rate - fault | D12: %
A13: ET_QOS3611_00002 | B13: TQS0102 | C13: Number of Lines fault outages | D13: number
A14: ET_QOS3611_00003 | B14: TQS0103 | C14: Number of defined Lines | D14: number
A15: ET_QOS3611_00004 | B15: TQS0104 | C15: Transformers outage rate - fault | D15: %
A16: ET_QOS3611_00005 | B16: TQS0105 | C16: Number of Transformer fault outages | D16: number
A17: ET_QOS3611_00006 | B17: TQS0106 | C17: Number of defined Transformers | D17: number
A18: ET_QOS3611_00007 | B18: TQS0107 | C18: Reactive plant outage rate - fault | D18: %
A19: ET_QOS3611_00008 | B19: TQS0108 | C19: Number of Reactive plant fault outages | D19: number
A20: ET_QOS3611_00009 | B20: TQS0109 | C20: Number of defined Reactive plant | D20: number
A21: ET_QOS3611_00010 | B21: TQS0110 | C21: Lines outage rate – forced outage | D21: %
A22: ET_QOS3611_00011 | B22: TQS0111 | C22: Number of Lines forced outages | D22: number
A23: ET_QOS3611_00012 | B23: TQS0112 | C23: Transformer outage rate – forced outage | D23: %
A24: ET_QOS3611_00013 | B24: TQS0113 | C24: Number of Transformers forced outages | D24: number
A25: ET_QOS3611_00014 | B25: TQS0114 | C25: Reactive plant outage rate – forced outage | D25: %
A26: ET_QOS3611_00015 | B26: TQS0115 | C26: Number of Reactive plant forced outages | D26: number
C28: Table 3.6.1.2 Service Parameter 2 – Loss of supply event frequency – number in ranges specified
A29: ET_QOS3612_00001 | B29: TQS0116 | C29: Number of events greater than 0.05 system minutes per annum (X) | D29: number
A30: ET_QOS3612_00002 | B30: TQS0117 | C30: Number of events greater than 0.1 system minutes per annum (X) | D30: number
A31: ET_QOS3612_00003 | B31: TQS0118 | C31: Number of events greater than 0.2 system minutes per annum (X) | D31: number
A32: ET_QOS3612_00004 | B32: TQS0119 | C32: Number of events greater than 0.25 system minutes per annum (X) | D32: number
A33: ET_QOS3612_00005 | B33: TQS0120 | C33: Number of events greater than 0.30 system minutes per annum (X) | D33: number
A34: ET_QOS3612_00006 | B34: TQS0121 | C34: Number of events greater than 0.5 system minutes per annum (X) | D34: number
A35: ET_QOS3612_00007 | B35: TQS0122 | C35: Number of events greater than 0.75 system minutes per annum (X) | D35: number
A36: ET_QOS3612_00008 | B36: TQS0123 | C36: Number of events greater than 1.0 system minutes per annum (X) | D36: number
A37: ET_QOS3612_00009 | B37: TQS0124 | C37: Number of events greater than 0.05 system minutes per annum (Y) | D37: number
A38: ET_QOS3612_00010 | B38: TQS0125 | C38: Number of events greater than 0.1 system minutes per annum (Y) | D38: number
A39: ET_QOS3612_00011 | B39: TQS0126 | C39: Number of events greater than 0.2 system minutes per annum (Y) | D39: number
A40: ET_QOS3612_00012 | B40: TQS0127 | C40: Number of events greater than 0.25 system minutes per annum (Y) | D40: number
A41: ET_QOS3612_00013 | B41: TQS0128 | C41: Number of events greater than 0.30 system minutes per annum (Y) | D41: number
A42: ET_QOS3612_00014 | B42: TQS0129 | C42: Number of events greater than 0.5 system minutes per annum (Y) | D42: number
A43: ET_QOS3612_00015 | B43: TQS0130 | C43: Number of events greater than 0.75 system minutes per annum (Y) | D43: number
A44: ET_QOS3612_00016 | B44: TQS0131 | C44: Number of events greater than 1.0 system minutes per annum (Y) | D44: number
C46: Table 3.6.1.3 Service Parameter 3 – Average outage duration
A47: ET_QOS3613_00001 | B47: TQS0118 | C47: Average outage duration | D47: minutes
C49: Table 3.6.1.4 System Parameter 4 – Proper operation of equipment – number of failure events
A50: ET_QOS3614_00001 | B50: TQS0119 | C50: Failure of protection system | D50: number
A51: ET_QOS3614_00002 | B51: TQS0120 | C51: Material failure of Supervisory Control and Data Acquisition (SCADA) system | D51: number
A52: ET_QOS3614_00003 | B52: TQS0121 | C52: Incorrect operational isolation of primary or secondary equipment | D52: number
C55: TABLE 3.6.2 - MARKET IMPACT COMPONENT
A56: ET_QOS3620_00001 | B56: TQS02 | C56: Market Impact Parameter | D56: Number of dispatch intervals
C59: TABLE 3.6.3 - SYSTEM LOSSES
A60: ET_QOS3630_00001 | B60: TQS03 | C60: System losses | D60: % | E60: 0.027

Sheet 3.7 Operating environment
C1: REGULATORY REPORTING STATEMENT
C2: =TradingName -> TasNetworks
C3: =CONCATENATE("Benchmarking RIN response ",CRY) -> Benchmarking RIN response 2013-14
C4: 3.7 OPERATING ENVIRONMENT FACTORS
E7: Actual
E8: =CRY -> 2013-14
D9: Unit
B10: TEF01 | C10: TABLE 3.7.1 - TERRAIN FACTORS
A11: ET_OEF3710_00001 | B11: TEF0101 | C11: Total number of vegetation maintenance spans | D11: Number of spans | E11: 919
A12: ET_OEF3710_00002 | B12: TEF0102 | C12: Average vegetation maintenance span cycle | D12: Years | E12: 5
A13: ET_OEF3710_00003 | B13: TEF0103 | C13: Average number of trees per vegetation maintenance span | D13: Trees | E13: 1543
A14: ET_OEF3710_00004 | B14: TEF0104 | C14: Average number of defects per vegetation maintenance span | D14: Defects | E14: 1
A15: ET_OEF3710_00005 | B15: TEF0105 | C15: Tropical proportion | D15: Number of spans | E15: 0
A16: ET_OEF3710_00006 | B16: TEF0106 | C16: Standard vehicle access | D16: km | E16: 2302
A17: ET_OEF3710_00007 | B17: TEF0107 | C17: Altitude | D17: km | E17: 492
A18: ET_OEF3710_00008 | B18: TEF0108 | C18: Bushfire risk | D18: Number of spans | E18: 209
B20: TEF02 | C20: TABLE 3.7.2 - NETWORK CHARACTERISTICS
A21: ET_OEF3720_00001 | B21: TEF0201 | C21: Route line length | D21: km | E21: 2336
A22: ET_OEF3720_00002 | B22: TEF0202 | C22: Variability of dispatch | D22: % | E22: 0.93
A23: ET_OEF3720_00003 | B23: TEF0203 | C23: Concentrated load distance | D23: km | E23: 319
A24: ET_OEF3720_00004 | B24: TEF0204 | C24: Total number of spans | D24: number | E24: 7800

Sheet 3.7.4 Weather stations
C1: REGULATORY REPORTING STATEMENT
C2: =TradingName -> TasNetworks
C3: =CONCATENATE("Benchmarking RIN response ",CRY) -> Benchmarking RIN response 2013-14
C4: 3.7 OPERATING ENVIRONMENT FACTORS
C7: TABLE 3.7.4 - WEATHER STATIONS
C9: Weather Station ID | D9: Post code | E9: Suburb | F9: Materiality
A10: ED_OEF374_00001 | C10: 91313 | D10: 7310 | E10: ABERDEEN (MELROSE ROAD) | F10: Yes
A11: ED_OEF374_00002 | C11: 94236 | D11: 7150 | E11: ADVENTURE BAY (BLIGH MUSEUM) | F11: No
A12: ED_OEF374_00003 | C12: 94159 | D12: 7150 | E12: ADVENTURE BAY (FORESTRY) | F12: No
A13: ED_OEF374_00004 | C13: 94070 | D13: 7150 | E13: ALONNAH AREA SCHOOL | F13: No
A14: ED_OEF374_00005 | C14: 92129 | D14: 7264 | E14: ANSONS BAY | F14: No
A15: ED_OEF374_00006 | C15: 92001 | D15: 7190 | E15: APSLAWN | F15: No
A16: ED_OEF374_00007 | C16: 97045 | D16: 7116 | E16: ARVE VALLEY (ARVE ROAD) | F16: Yes
A17: ED_OEF374_00008 | C17: 92002 | D17: 7213 | E17: AVOCA (RAILWAY HOUSE) | F17: Yes
A18: ED_OEF374_00009 | C18: 99025 | D18: 7255 | E18: BADGER CORNER | F18: No
A19: ED_OEF374_00010 | C19: 91153 | D19: 7306 | E19: BARRINGTON POST OFFICE | F19: Yes
A20: ED_OEF374_00011 | C20: 91001 | D20: 7270 | E20: BEACONSFIELD (MINE & HERITAGE CENTRE) | F20: Yes
A21: ED_OEF374_00012 | C21: 92113 | D21: 7215 | E21: BEAUMARIS (SKYLINE DRIVE) | F21: No
A22: ED_OEF374_00013 | C22: 94182 | D22: 7027 | E22: BELOW CRAIGBOURNE DAM (COAL RIVER) | F22: Yes
A23: ED_OEF374_00014 | C23: 92003 | D23: 7215 | E23: BICHENO (COUNCIL DEPOT) | F23: No
A24: ED_OEF374_00015 | C24: 92160 | D24: 7215 | E24: BICHENO (DENISON RIVER) | F24: No
A25: ED_OEF374_00016 | C25: 93046 | D25: 7120 | E25: BIRRALEE CREEK | F25: No
A26: ED_OEF374_00017 | C26: 94163 | D26: 7052 | E26: BLACKMANS BAY TREATMENT PLANT | F26: Yes
A27: ED_OEF374_00018 | C27: 91002 | D27: 7301 | E27: BLACKWOOD CREEK (KOPANICA) | F27: Yes
A28: ED_OEF374_00019 | C28: 91364 | D28: 7321 | E28: BOAT HARBOUR | F28: Yes
A29: ED_OEF374_00020 | C29: 98029 | D29: 7256 | E29: BOB LAGOON | F29: No
A30: ED_OEF374_00021 | C30: 95005 | D30: 7030 | E30: BOTHWELL (CLUNY) | F30: Yes
A31: ED_OEF374_00022 | C31: 95046 | D31: 7030 | E31: BOTHWELL (CLYDE RIVER) | F31: Yes
A32: ED_OEF374_00023 | C32: 95001 | D32: 7030 | E32: BOTHWELL (FRANKLIN STREET) | F32: Yes
A33: ED_OEF374_00024 | C33: 91284 | D33: 7262 | E33: BRIDPORT (SEA VIEW VILLAS) | F33: No
A34: ED_OEF374_00025 | C34: 96002 | D34: 7140 | E34: BRONTE HEIGHTS | F34: Yes
A35: ED_OEF374_00026 | C35: 92155 | D35: 7190 | E35: BUCKLAND (BROCKLEY ROAD) | F35: Yes
A36: ED_OEF374_00027 | C36: 92006 | D36: 7190 | E36: BUCKLAND (BROCKLEY) | F36: Yes
A37: ED_OEF374_00028 | C37: 92128 | D37: 7190 | E37: BUCKLAND (KENT STREET) | F37: Yes
A38: ED_OEF374_00029 | C38: 94235 | D38: 7190 | E38: BUCKLAND (PULCHELLA) | F38: Yes
A39: ED_OEF374_00030 | C39: 94166 | D39: 7150 | E39: BULL BAY (LAURISTON) | F39: Yes
A40: ED_OEF374_00031 | C40: 91355 | D40: 7320 | E40: BURNIE (PARK GROVE) | F40: Yes
A41: ED_OEF374_00032 | C41: 91009 | D41: 7320 | E41: BURNIE (ROUND HILL) | F41: Yes
A42: ED_OEF374_00033 | C42: 91225 | D42: 7212 | E42: BURNS CREEK (JANEFIELD) | F42: Yes
A43: ED_OEF374_00034 | C43: 95003 | D43: 7140 | E43: BUSHY PARK (BUSHY PARK ESTATES) | F43: Yes
A44: ED_OEF374_00035 | C44: 96003 | D44: 7140 | E44: BUTLERS GORGE | F44: Yes
A45: ED_OEF374_00036 | C45: 94212 | D45: 7026 | E45: CAMPANIA (KINCORA) | F45: Yes
A46: ED_OEF374_00037 | C46: 93033 | D46: 7210 | E46: CAMPBELL TOWN (ELIZABETH R) | F46: Yes
A47: ED_OEF374_00038 | C47: 94198 | D47: 7150 | E47: CAPE BRUNY (CAPE BRUNY) | F47: No
A48: ED_OEF374_00039 | C48: 94010 | D48: 7150 | E48: CAPE BRUNY LIGHTHOUSE | F48: No
A49: ED_OEF374_00040 | C49: 91331 | D49: 7330 | E49: CAPE GRIM | F49: No
A50: ED_OEF374_00041 | C50: 91245 | D50: 7330 | E50: CAPE GRIM BAPS (COMPARISON) | F50: No
A51: ED_OEF374_00042 | C51: 97000 | D51: 7468 | E51: CAPE SORELL | F51: No
A52: ED_OEF374_00043 | C52: 94245 | D52: 7109 | E52: CATAMARAN | F52: No
A53: ED_OEF374_00044 | C53: 98000 | D53: 7256 | E53: CITY OF MELBOURNE BAY | F53: No
A54: ED_OEF374_00045 | C54: 94258 | D54: 7011 | E54: CLAREMONT (GILLIES ROAD) | F54: Yes
A55: ED_OEF374_00046 | C55: 94257 | D55: 7020 | E55: CLIFTON BEACH (CLIFTON BEACH ROAD TBRG) | F55: Yes
A56: ED_OEF374_00047 | C56: 94260 | D56: 7027 | E56: COLEBROOK (DANIELS ROAD) | F56: Yes
A57: ED_OEF374_00048 | C57: 94014 | D57: 7027 | E57: COLEBROOK (THE MEADOWS) | F57: No
A58: ED_OEF374_00049 | C58: 92153 | D58: 7174 | E58: COPPING (YAXLEY ESTATE) | F58: No
A59: ED_OEF374_00050 | C59: 97023 | D59: 7321 | E59: CORINNA | F59: Yes
A60: ED_OEF374_00051 | C60: 92064 | D60: 7215 | E60: CORNWALL | F60: Yes
A61: ED_OEF374_00052 | C61: 91263 | D61: 7258 | E61: CORRA LINN (NORTH ESK RIVER) | F61: Yes
A62: ED_OEF374_00053 | C62: 94249 | D62: 7109 | E62: CRABTREE (STONEY CREEK FARM) | F62: Yes
A63: ED_OEF374_00054 | C63: 91306 | D63: 7302 | E63: CRESSY RESEARCH STATION | F63: Yes
A64: ED_OEF374_00055 | C64: 91022 | D64: 7302 | E64: CRESSY RESEARCH STATION (MAIN OFFICE) | F64: Yes
A65: ED_OEF374_00056 | C65: 98032 | D65: 7256 | E65: CURRIE (FRASER ROAD) | F65: No
A66: ED_OEF374_00057 | C66: 98011 | D66: 7256 | E66: CURRIE (MAIN STREET) | F66: No
A67: ED_OEF374_00058 | C67: 94219 | D67: 7112 | E67: CYGNET (SYNOTTS ROAD) | F67: Yes
A68: ED_OEF374_00059 | C68: 91077 | D68: 7212 | E68: DEDDINGTON (MARATHON) | F68: No
A69: ED_OEF374_00060 | C69: 91326 | D69: 7212 | E69: DEDDINGTON (NILE RIVER) | F69: No
A70: ED_OEF374_00061 | C70: 91278 | D70: 7304 | E70: DELORAINE (REEDY MARSH) | F70: Yes
A71: ED_OEF374_00062 | C71: 91227 | D71: 7304 | E71: DELORAINE RAILWAY BRIDGE (MEANDER RIVER) | F71: Yes
A72: ED_OEF374_00063 | C72: 94255 | D72: 7150 | E72: DENNES POINT | F72: Yes
A73: ED_OEF374_00064 | C73: 96069 | D73: 7140 | E73: DERWENT BRIDGE | F73: Yes
A74: ED_OEF374_00065 | C74: 91255 | D74: 7275 | E74: DEVIOT JETTY | F74: Yes
A75: ED_OEF374_00066 | C75: 91126 | D75: 7307 | E75: DEVONPORT AIRPORT | F75: Yes
A76: ED_OEF374_00067 | C76: 94221 | D76: 7173 | E76: DODGES FERRY | F76: Yes
A77: ED_OEF374_00068 | C77: 94020 | D77: 7117 | E77: DOVER | F77: Yes
A78: ED_OEF374_00069 | C78: 94254 | D78: 7177 | E78: DUNALLEY (STROUD POINT) | F78: No
A79: ED_OEF374_00070 | C79: 91029 | D79: 7304 | E79: DUNORLAN (SHARMANS ROAD) | F79: Yes
A80: ED_OEF374_00071 | C80: 94071 | D80: 7179 | E80: EAGLEHAWK NECK (JETTY ROAD) | F80: No
A81: ED_OEF374_00072 | C81: 91357 | D81: 7330 | E81: EDITH CREEK (BIRTHDAY CREEK) | F81: Yes
A82: ED_OEF374_00073 | C82: 95033 | D82: 7140 | E82: ELLENDALE POST OFFICE | F82: Yes
A83: ED_OEF374_00074 | C83: 91032 | D83: 7211 | E83: EPPING FOREST (FORTON) | F83: Yes
A84: ED_OEF374_00075 | C84: 91312 | D84: 7310 | E84: ERRIBA (JUBB ROAD) | F84: Yes
A85: ED_OEF374_00076 | C85: 91118 | D85: 7212 | E85: EVANDALE (CAMBOCK LANE) | F85: Yes
A86: ED_OEF374_00077 | C86: 95064 | D86: 7140 | E86: FENTONBURY (HAMLET DOWNS) | F86: Yes
A87: ED_OEF374_00078 | C87: 94139 | D87: 7054 | E87: FERN TREE (GRAYS ROAD) | F87: Yes
A88: ED_OEF374_00079 | C88: 92012 | D88: 7214 | E88: FINGAL (LEGGE STREET) | F88: Yes
A89: ED_OEF374_00080 | C89: 99005 | D89: 7255 | E89: FLINDERS ISLAND AIRPORT | F89: No
A90: ED_OEF374_00081 | C90: 94022 | D90: 7022 | E90: FORT DIRECTION | F90: Yes
A91: ED_OEF374_00082 | C91: 94213 | D91: 7182 | E91: FORTESCUE BAY | F91: No
A92: ED_OEF374_00083 | C92: 91186 | D92: 7310 | E92: FORTHSIDE RESEARCH STATION | F92: Yes
A93: ED_OEF374_00084 | C93: 93059 | D93: 7210 | E93: FOSTERVILLE | F93: Yes
A94: ED_OEF374_00085 | C94: 91033 | D94: 7275 | E94: FRANKFORD (ROSSVILLE) | F94: Yes
A95: ED_OEF374_00086 | C95: 94261 | D95: 7113 | E95: FRANKLIN (SOUTH) | F95: Yes
A96: ED_OEF374_00087 | C96: 92114 | D96: 7215 | E96: FRIENDLY BEACHES | F96: No
A97: ED_OEF374_00088 | C97: 94137 | D97: 7116 | E97: GEEVESTON (CEMETERY ROAD) | F97: Yes
A98: ED_OEF374_00089 | C98: 94116 | D98: 7116 | E98: GEEVESTON (RIAWUNNA) | F98: Yes
A99: ED_OEF374_00090 | C99: 91286 | D99: 7253 | E99: GEORGE TOWN (SOUTH STREET) | F99: Yes
A100: ED_OEF374_00091 | C100: 92014 | D100: 7215 | E100: GERMAN TOWN | F100: Yes
A101: ED_OEF374_00092 | C101: 92011 | D101: 7264 | E101: GLADSTONE (OLD POST OFFICE) | F101: No
A102: ED_OEF374_00093 | C102: 94104 | D102: 7109 | E102: GLAZIERS BAY | F102: Yes
A103: ED_OEF374_00094 | C103: 95072 | D103: 7140 | E103: GLENFERN (HOMEBUSH) | F103: Yes
A104: ED_OEF374_00095 | C104: 91351 | D104: 7303 | E104: GLENGARRY (GINNS ROAD) | F104: Yes
A105: ED_OEF374_00096 | C105: 91341 | D105: 7275 | E105: GLENGARRY (HUNDRED ACRE WOOD) | F105: Yes
A106: ED_OEF374_00097 | C106: 94025 | D106: 7010 | E106: GLENORCHY (GLENORCHY RESERVOIR) | F106: Yes
A107: ED_OEF374_00098 | C107: 91290 | D107: 7304 | E107: GOLDEN VALLEY (BRODIES ROAD) | F107: Yes
A108: ED_OEF374_00099 | C108: 91322 | D108: 7306 | E108: GOWRIE PARK (O'NEILLS ROAD) | F108: Yes
A109: ED_OEF374_00100 | C109: 98031 | D109: 7256 | E109: GRASSY (CURRIE RD) | F109: No
A110: ED_OEF374_00101 | C110: 92141 | D110: 7215 | E110: GRAY (DALMAYNE RD) | F110: Yes
A111: ED_OEF374_00102 | C111: 92159 | D111: 7215 | E111: GRAY (HAVEN OF HOPE) | F111: Yes
A112: ED_OEF374_00103 | C112: 91340 | D112: 7277 | E112: GRINDELWALD | F112: Yes
A113: ED_OEF374_00104 | C113: 92149 | D113: 7190 | E113: GRINDSTONE POINT | F113: Yes
A114: ED_OEF374_00105 | C114: 94220 | D114: 7109 | E114: GROVE (RESEARCH STATION) | F114: Yes
A115: ED_OEF374_00106 | C115: 91315 | D115: 7290 | E115: HADSPEN | F115: Yes
A116: ED_OEF374_00107 | C116: 94191 | D116: 7116 | E116: HARTZ MOUNTAIN (KEOGHS PIMPLE) | F116: Yes
A117: ED_OEF374_00108 | C117: 96070 | D117: 7030 | E117: HERMITAGE (SHANNON RIVER) | F117: Yes
A118: ED_OEF374_00109 | C118: 91041 | D118: 7252 | E118: HILLWOOD (HILLWOODVILLE) | F118: Yes
A119: ED_OEF374_00110 | C119: 94029 | D119: 7000 | E119: HOBART (ELLERSLIE ROAD) | F119: Yes
A120: ED_OEF374_00111 | C120: 94008 | D120: 7170 | E120: HOBART AIRPORT | F120: Yes
A121: ED_OEF374_00112 | C121: 91325 | D121: 7302 | E121: HUMMOCKY HILLS | F121: Yes
A122: ED_OEF374_00113 | C122: 94089 | D122: 7109 | E122: HUONVILLE (TUTTON AVENUE) | F122: Yes
A123: ED_OEF374_00114 | C123: 91366 | D123: 7304 | E123: JACKEYS MARSH | F123: Yes
A124: ED_OEF374_00115 | C124: 93002 | D124: 7030 | E124: JERICHO (BOWSDEN) | F124: No
A125: ED_OEF374_00116 | C125: 94179 | D125: 7109 | E125: JUDBURY (HUON RIVER) | F125: Yes
A126: ED_OEF374_00117 | C126: 91266 | D126: 7304 | E126: KIMBERLEY (MERSEY RIVER) | F126: Yes
A127: ED_OEF374_00118 | C127: 91149 | D127: 7304 | E127: KIMBERLEY (SIDING) | F127: Yes
A128: ED_OEF374_00119 | C128: 98017 | D128: 7256 | E128: KING ISLAND AIRPORT | F128: No
A129: ED_OEF374_00120 | C129: 94222 | D129: 7050 | E129: KINGSTON (GREENHILL DRIVE) | F129: Yes
A130: ED_OEF374_00121 | C130: 99002 | D130: 7255 | E130: LADY BARRON (FRANKLIN PARADE) | F130: No
A131: ED_OEF374_00122 | C131: 92019 | D131: 7210 | E131: LAKE LEAKE (ELIZABETH RIVER) | F131: No
A132: ED_OEF374_00123 | C132: 92146 | D132: 7210 | E132: LAKE LEAKE (FWS) | F132: No
A133: ED_OEF374_00124 | C133: 97020 | D133: 7467 | E133: LAKE MARGARET POWER STATION | F133: Yes
A134: ED_OEF374_00125 | C134: 96071 | D134: 7140 | E134: LAKE ST CLAIR NATIONAL PARK | F134: Yes
A135: ED_OEF374_00126 | C135: 92045 | D135: 7264 | E135: LARAPUNA (EDDYSTONE POINT) | F135: No
A136: ED_OEF374_00127 | C136: 91048 | D136: 7307 | E136: LATROBE (COAL ROAD) | F136: Yes
A137: ED_OEF374_00128 | C137: 91237 | D137: 7248 | E137: LAUNCESTON (TI TREE BEND) | F137: Yes
A138: ED_OEF374_00129 | C138: 91311 | D138: 7212 | E138: LAUNCESTON AIRPORT | F138: Yes
A139: ED_OEF374_00130 | C139: 91275 | D139: 7277 | E139: LEGANA (UNA VILLAS) | F139: Yes
A140: ED_OEF374_00131 | C140: 94239 | D140: 7054 | E140: LESLIE VALE | F140: Yes
A141: ED_OEF374_00132 | C141: 94097 | D141: 7120 | E141: LEVENDALE | F141: Yes
A142: ED_OEF374_00133 | C142: 92020 | D142: 7213 | E142: LEWIS HILL (ST PAULS RIVER) | F142: Yes
A143: ED_OEF374_00134 | C143: 96033 | D143: 7030 | E143: LIAWENEE | F143: Yes
A144: ED_OEF374_00135 | C144: 91346 | D144: 7268 | E144: LILYDALE (TORWOOD) | F144: Yes
A145: ED_OEF374_00136 | C145: 91053 | D145: 7268 | E145: LILYDALE POST OFFICE | F145: Yes
A146: ED_OEF374_00137 | C146: 92154 | D146: 7190 | E146: LITTLE SWANPORT (LISDILLON FARM) | F146: No
A147: ED_OEF374_00138 | C147: 93044 | D147: 7213 | E147: LLEWELLYN (SOUTH ESK RIVER) | F147: Yes
A148: ED_OEF374_00139 | C148: 91054 | D148: 7301 | E148: LONGFORD (DENTON CLOSE) | F148: Yes
A149: ED_OEF374_00140 | C149: 94231 | D149: 7150 | E149: LONGLEY (RIVER BEND ROAD) | F149: Yes
A150: ED_OEF374_00141 | C150: 94151 | D150: 7150 | E150: LONGLEY (TELOPEA) | F150: Yes
A151: ED_OEF374_00142 | C151: 91321 | D151: 7315 | E151: LOONGANA (SERENDIPITY) | F151: Yes
A152: ED_OEF374_00143 | C152: 91055 | D152: 7306 | E152: LORINNA | F152: Yes
A153: ED_OEF374_00144 | C153: 91293 | D153: 7253 | E153: LOW HEAD | F153: Yes
A154: ED_OEF374_00145 | C154: 97080 | D154: 7139 | E154: LOW ROCKY POINT | F154: No
A155: ED_OEF374_00146 | C155: 94175 | D155: 7109 | E155: LUCASTON (BAKERS CREEK ROAD) | F155: Yes
A156: ED_OEF374_00147 | C156: 94039 | D156: 7150 | E156: LUNAWANNA | F156: No
A157: ED_OEF374_00148 | C157: 91259 | D157: 7321 | E157: LUNCHEON HILL (FORESTRY) | F157: No
A158: ED_OEF374_00149 | C158: 94040 | D158: 7109 | E158: LYMINGTON (FATTYS LANE) | F158: Yes
A159: ED_OEF374_00150 | C159: 92124 | D159: 7190 | E159: MARIA ISLAND (POINT LESUEUR) | F159: Yes
A160: ED_OEF374_00151 | C160: 91223 | D160: 7330 | E160: MARRAWAH | F160: No
A161: ED_OEF374_00152 | C161: 92106 | D161: 7214 | E161: MATHINNA (SOUTH ESK RIVER) | F161: No
A162: ED_OEF374_00153 | C162: 94143 | D162: 7030 | E162: MAURICETON (JORDAN RIVER) | F162: Yes
A163: ED_OEF374_00154 | C163: 95063 | D163: 7140 | E163: MAYDENA POST OFFICE | F163: Yes
A164: ED_OEF374_00155 | C164: 91267 | D164: 7304 | E164: MEANDER (MEANDER RIVER) | F164: Yes
A165: ED_OEF374_00156 | C165: 94201 | D165: 7030 | E165: MELTON MOWBRAY (NORTH STOCKMAN) | F165: Yes
A166: ED_OEF374_00157 | C166: 99014 | D166: 7255 | E166: MEMANA (BABEL FARM) | F166: No
A167: ED_OEF374_00158 | C167: 94043 | D167: 7163 | E167: MIDDLETON POST OFFICE | F167: Yes
A168: ED_OEF374_00159 | C168: 98026 | D168: 7256 | E168: MILLERS BAY | F168: No
A169: ED_OEF374_00160 | C169: 91065 | D169: 7304 | E169: MOLE CREEK | F169: Yes
A170: ED_OEF374_00161 | C170: 95069 | D170: 7140 | E170: MOLESWORTH (GLEN DHU ROAD) | F170: Yes
A171: ED_OEF374_00162 | C171: 92144 | D171: 7214 | E171: MONAMETA (MATHINNA RD) | F171: Yes
A172: ED_OEF374_00163 | C172: 91338 | D172: 7268 | E172: MOUNT ARTHUR SUMMIT | F172: Yes
A173: ED_OEF374_00164 | C173: 91198 | D173: 7259 | E173: MOUNT BARROW (SOUTH BARROW) | F173: Yes
A174: ED_OEF374_00165 | C174: 95076 | D174: 7140 | E174: MOUNT LLOYD | F174: Yes
A175: ED_OEF374_00166 | C175: 93052 | D175: 7209 | E175: MOUNT MORRISTON (MACQUARIE RIVER) | F175: No
A176: ED_OEF374_00167 | C176: 97085 | D176: 7470 | E176: MOUNT READ | F176: Yes
A177: ED_OEF374_00168 | C177: 93049 | D177: 7120 | E177: MOUNT SEYMOUR | F177: No
A178: ED_OEF374_00169 | C178: 91194 | D178: 7214 | E178: MOUNT VICTORIA (UNA PLAIN) | F178: No
A179: ED_OEF374_00170 | C179: 94087 | D179: 7054 | E179: MOUNT WELLINGTON | F179: Yes
A180: ED_OEF374_00171 | C180: 98004 | D180: 7256 | E180: NARACOOPA | F180: No
A181: ED_OEF374_00172 | C181: 95081 | D181: 7140 | E181: NEW NORFOLK (WEST) | F181: Yes
A182: ED_OEF374_00173 | C182: 94185 | D182: 7054 | E182: NIERINNA (CUTHBERTS ROAD) | F182: Yes
A183: ED_OEF374_00174 | C183: 91039 | D183: 7307 | E183: NORTHDOWN (HAMLEY) | F183: Yes
A184: ED_OEF374_00175 | C184: 92158 | D184: 7172 | E184: NUGENT (TWILIGHT VALLEY TBRG) | F184: Yes
A185: ED_OEF374_00176 | C185: 92099 | D185: 7172 | E185: NUGENT (TWILIGHT VALLEY) | F185: Yes
A186: ED_OEF374_00177 | C186: 91271 | D186: 7259 | E186: NUNAMARA OFFTAKE (ST PATRICKS RIVER) | F186: Yes
A187: ED_OEF374_00178 | C187: 93014 | D187: 7120 | E187: OATLANDS POST OFFICE | F187: No
A188: ED_OEF374_00179 | C188: 94048 | D188: 7023 | E188: OPOSSUM BAY | F188: Yes
A189: ED_OEF374_00180 | C189: 92027 | D189: 7190 | E189: ORFORD (AUBIN COURT) | F189: Yes
A190: ED_OEF374_00181 | C190: 92028 | D190: 7190 | E190: ORFORD SOUTH | F190: Yes
A191: ED_OEF374_00182 | C191: 94130 | D191: 7172 | E191: ORIELTON (EAST ORIELTON ROAD) | F191: Yes
A192: ED_OEF374_00183 | C192: 95016 | D192: 7140 | E192: OSTERLEY | F192: Yes
A193: ED_OEF374_00184 | C193: 95012 | D193: 7140 | E193: OUSE (MILLBROOK) | F193: Yes
A194: ED_OEF374_00185 | C194: 95048 | D194: 7140 | E194: OUSE FIRE STATION | F194: Yes
A195: ED_OEF374_00186 | C195: 98030 | D195: 7256 | E195: PEGARAH | F195: No
A196: ED_OEF374_00187 | C196: 91167 | D196: 7300 | E196: PERTH (FORESTRY NURSERY) | F196: Yes
A197: ED_OEF374_00188 | C197: 97076 | D197: 7139 | E197: PICTON VALLEY (SPUR 1 ROAD) | F197: Yes
A198: ED_OEF374_00189 | C198: 92030 | D198: 7264 | E198: PIONEER (MAIN ROAD) | F198: Yes
A199: ED_OEF374_00190 | C199: 91348 | D199: 7252 | E199: PIPERS RIVER (BAY OF FIRES) | F199: Yes
A200: ED_OEF374_00191 | C200: 96081 | D200: 7302 | E200: POATINA | F200: Yes
A201: ED_OEF374_00192 | C201: 94244 | D201: 7182 | E201: PORT ARTHUR (STEWARTS BAY) | F201: No
A202: ED_OEF374_00193 | C202: 94053 | D202: 7185 | E202: PREMAYDENA HATCHERY | F202: No
A203: ED_OEF374_00194 | C203: 91360 | D203: 7315 | E203: PRESTON | F203: Yes
... 897 more rows

Sheet Unlocked worksheet
